bitfinex-derivatives/quotes_ETHF0:USTF0_20210107
["timestamp","ask_amount","ask_price","bid_price","bid_amount"]
[1609995715879,35.7212,1208.7,1205.8,4.00959]
[1609995716080,4.00959,1206.2,1206.1,4.00959]
[1609995717283,2.2826,1207.5,1206.1,4.00959]
[1609995718184,4.00959,1206.2,1206.1,4.00959]
[1609995719383,4.00959,1206.2,1203.4,35.8636]
[1609995720183,4.00959,1206.2,1205.9,4.00959]
[1609995721285,4.00959,1206.2,1203.4,5.8636]
[1609995722086,4.00959,1205.7,1205.4,4.00959]
[1609995723887,4.00959,1205.7,1203.4,5.8636]
[1609995724088,4.00959,1205.3,1205.2,4.00959]
[1609995725796,4.00959,1205.3,1203.4,5.8636]
[1609995726189,2.1556,1206.7,1204.8,4.00959]
[1609995727490,67.8661,1205.9,1204.8,4.00959]
[1609995728089,4.00959,1204.9,1204.8,4.00959]
[1609995730194,4.00959,1204.9,1203.4,5.8636]
[1609995732093,67.8661,1205.9,1204.2,4.00959]
[1609995732795,67.8661,1205.9,1200.3,30.0]
[1609995732995,67.8661,1205.9,1200.4,5.7428]
[1609995733196,67.8661,1205.9,1200.5,30.0]
[1609995734199,67.8661,1205.9,1203.9,4.00959]
[1609995736100,4.00959,1204.3,1204.1,4.00959]
[1609995737805,3.2315,1205.4,1204.1,4.00959]
[1609995738206,3.2315,1205.4,1204.7,4.00959]
[1609995738407,3.2314,1206.1,1204.7,4.00959]
[1609995738607,6.0038,1206.3,1204.7,4.00959]
[1609995739207,6.0038,1206.3,1200.5,30.0]
[1609995740208,4.00959,1204.8,1200.5,30.0]
[1609995740611,2.7789,1206.0,1200.5,30.0]
[1609995742211,4.00959,1204.0,1203.9,4.00959]
[1609995745012,4.00959,1204.0,1200.5,30.0]
[1609995746214,4.00959,1203.8,1203.7,4.00959]
[1609995746415,4.00959,1203.8,1200.4,5.7428]
[1609995748118,5.64939,1203.8,1200.4,5.7428]
[1609995748319,4.00959,1202.6,1202.5,4.00959]
[1609995748518,4.00959,1202.6,1200.4,5.7428]
[1609995752419,2.6871,1203.4,1200.4,5.7428]
[1609995754219,2.6871,1203.4,1202.0,4.00959]
[1609995756329,2.6871,1203.4,1203.0,4.00959]
[1609995756621,2.6453,1204.0,1203.0,4.00959]
[1609995756929,5.7353,1205.3,1203.0,4.00959]
[1609995757620,35.7353,1205.3,1203.0,4.00959]
[1609995757821,35.7353,1205.3,1200.4,5.7428]
[1609995758031,37.9406,1205.3,1200.4,5.7428]
[1609995758222,4.00959,1203.2,1203.0,4.00959]
[1609995758723,4.00959,1203.2,1200.4,5.7428]
[1609995760223,4.00959,1203.2,1202.8,4.00959]
[1609995761728,5.7455,1205.2,1202.8,4.00959]
[1609995762328,4.00959,1203.6,1203.3,4.00959]
[1609995763229,4.00959,1203.6,1200.4,5.7428]
[1609995763427,5.67119,1203.6,1200.4,5.7428]
[1609995763628,4.00959,1203.6,1200.4,5.7428]
[1609995764027,4.00959,1203.6,1200.4,35.7428]
[1609995764328,4.00959,1203.6,1203.2,4.00959]
[1609995765529,3.2869,1204.7,1203.2,4.00959]
[1609995765928,4.9596,1204.7,1203.2,4.00959]
[1609995766330,4.00959,1203.9,1203.8,4.00959]
[1609995766830,4.00959,1203.9,1200.4,35.7428]
[1609995768232,4.00959,1203.9,1203.6,4.00959]
[1609995768532,4.00959,1203.9,1200.4,35.7428]
[1609995770231,4.00959,1203.4,1203.1,4.00959]
[1609995770631,4.00959,1203.4,1200.4,35.7428]
[1609995771033,4.00959,1203.4,1200.4,5.7428]
[1609995772436,4.00959,1202.9,1202.7,4.00959]
[1609995774035,4.00959,1202.9,1200.4,5.7428]
[1609995774236,4.00959,1202.7,1202.4,4.00959]
[1609995775736,67.104,1204.0,1202.4,4.00959]
[1609995776340,4.00959,1202.7,1202.6,4.00959]
[1609995776640,4.00959,1202.7,1200.4,5.7428]
[1609995778343,4.00959,1202.4,1202.3,4.00959]
[1609995778544,67.104,1204.0,1202.3,4.00959]
[1609995778944,62.3859,1203.5,1202.3,4.00959]
[1609995779345,62.3859,1203.5,1200.4,5.7428]
[1609995780344,4.00959,1202.3,1202.0,4.00959]
[1609995781645,62.3859,1203.5,1202.0,4.00959]
[1609995782549,4.00959,1202.5,1200.4,5.7428]
[1609995784448,2.4632,1203.7,1200.4,5.7428]
[1609995784949,4.1119,1203.7,1200.4,5.7428]
[1609995785150,2.4632,1203.7,1200.4,5.7428]
[1609995786050,4.114,1203.7,1200.4,5.7428]
[1609995786350,4.00959,1202.3,1202.2,4.00959]
[1609995786752,4.114,1203.7,1202.2,4.00959]
[1609995788254,2.4632,1203.7,1202.2,4.00959]
[1609995788455,4.00959,1203.2,1203.1,4.00959]
[1609995788855,4.00959,1203.2,1200.4,5.7428]
[1609995789255,4.00959,1203.2,1200.4,13.1198]
[1609995789455,4.00959,1203.2,1200.4,5.7428]
[1609995790358,6.2273,1204.1,1202.6,4.00959]
[1609995792463,4.00959,1203.5,1203.2,4.00959]
[1609995793362,4.00959,1203.5,1200.4,35.7428]
[1609995794364,4.00959,1203.3,1203.1,4.00959]
[1609995794964,4.00959,1203.3,1200.4,5.7428]
[1609995796464,4.00959,1202.8,1202.6,4.00959]
[1609995797369,4.00959,1202.8,1200.4,5.7428]
[1609995797569,4.00959,1202.8,1200.4,13.1198]
[1609995798369,4.00959,1202.8,1202.5,4.00959]
[1609995799470,4.00959,1202.8,1200.4,5.7428]
[1609995800469,4.00959,1202.3,1200.4,5.7428]
[1609995802472,4.00959,1202.3,1202.2,4.00959]
[1609995802679,4.00959,1202.3,1200.4,5.7428]
[1609995803674,35.9715,1204.0,1200.4,5.7428]
[1609995803872,5.9715,1204.0,1200.4,5.7428]
[1609995804473,4.00959,1202.6,1202.4,4.00959]
[1609995807777,4.00959,1202.6,1200.4,5.7428]
[1609995808475,4.00959,1202.4,1202.3,4.00959]
[1609995809076,50.3344,1203.2,1202.3,4.00959]
[1609995810478,4.00959,1202.7,1202.5,4.00959]
[1609995812578,4.00959,1202.7,1202.3,4.00959]
[1609995814477,4.00959,1202.5,1202.3,4.00959]
[1609995816185,3.674,1204.1,1202.3,4.00959]
[1609995816480,4.00959,1202.6,1202.3,4.00959]
[1609995816982,3.674,1204.1,1202.3,4.00959]
[1609995818484,4.00959,1202.8,1202.7,4.00959]
[1609995820484,4.00959,1202.8,1202.4,4.00959]
[1609995822587,4.00959,1202.6,1202.4,4.00959]
[1609995822786,4.00959,1202.6,1200.4,5.7428]
[1609995824689,4.00959,1202.1,1202.0,4.00959]
[1609995825187,4.00959,1202.1,1200.4,5.7428]
[1609995826692,70.4421,1203.4,1201.9,4.00959]
[1609995827196,70.4421,1203.4,1200.4,5.7428]
[1609995828594,4.00959,1202.1,1201.9,4.00959]
[1609995828794,4.00959,1202.1,1200.4,5.7428]
[1609995830496,70.4421,1203.4,1200.4,5.7428]
[1609995830699,4.00959,1202.3,1202.1,4.00959]
[1609995830897,2.6953,1203.4,1202.1,4.00959]
[1609995831198,55.6907,1203.5,1202.1,4.00959]
[1609995832698,55.6907,1203.5,1202.4,4.00959]
[1609995834703,4.00959,1202.7,1202.2,4.00959]
[1609995835607,4.00959,1202.7,1200.4,9.4168]
[1609995836108,4.00959,1202.7,1200.4,5.7428]
[1609995836609,4.00959,1202.4,1202.0,4.00959]
[1609995836909,55.6907,1203.5,1202.0,4.00959]
[1609995838609,4.00959,1202.6,1202.2,4.00959]
[1609995842814,4.00959,1202.3,1202.2,4.00959]
[1609995843015,4.00959,1202.3,1200.4,9.4168]
[1609995844617,4.00959,1202.1,1201.9,4.00959]
[1609995844816,48.8053,1203.4,1201.9,4.00959]
[1609995846717,4.00959,1202.5,1202.1,4.00959]
[1609995850418,48.0374,1203.6,1202.1,4.00959]
[1609995850718,4.00959,1202.9,1202.3,4.00959]
[1609995852720,4.00959,1202.5,1202.3,4.00959]
[1609995853421,4.00959,1202.5,1200.4,9.4168]
[1609995854321,4.00959,1202.5,1200.4,5.7428]
[1609995854722,4.00959,1202.5,1202.4,4.00959]
[1609995855522,4.00959,1202.5,1200.4,5.7428]
[1609995856724,4.00959,1202.0,1201.8,4.00959]
[1609995857223,78.0374,1203.6,1201.8,4.00959]
[1609995858823,4.00959,1202.1,1201.8,4.00959]
[1609995859825,81.7521,1203.6,1201.8,4.00959]
[1609995860830,4.00959,1201.9,1201.8,4.00959]
[1609995861028,81.7521,1203.6,1201.8,4.00959]
[1609995862731,4.00959,1201.9,1201.8,4.00959]
[1609995862930,81.7521,1203.6,1201.8,4.00959]
[1609995864833,4.00959,1201.9,1201.6,4.00959]
[1609995867032,4.00959,1201.7,1201.4,4.00959]
[1609995870937,4.00959,1201.5,1201.4,4.00959]
[1609995871842,62.5939,1202.5,1201.4,4.00959]
[1609995872842,4.00959,1201.5,1201.4,4.00959]
[1609995873141,62.5939,1202.5,1201.4,4.00959]
[1609995874944,4.00959,1201.5,1201.4,4.00959]
[1609995875244,4.00959,1201.5,1198.3,30.0]
[1609995876945,62.5939,1202.5,1201.2,4.00959]
[1609995877946,3.2489,1202.7,1201.2,4.00959]
[1609995878149,30.0,1202.6,1201.2,4.00959]
[1609995878848,4.00959,1201.3,1201.2,4.00959]
[1609995880050,3.2489,1202.7,1201.2,4.00959]
[1609995880952,4.00959,1201.4,1201.2,4.00959]
[1609995882757,4.00959,1201.4,1198.3,30.0]
[1609995882957,30.0,1202.6,1200.8,4.00959]
[1609995885058,4.00959,1200.9,1200.8,4.00959]
[1609995889264,4.00959,1200.9,1198.3,37.377]
[1609995890567,4.00959,1200.9,1198.3,7.377]
[1609995891065,4.00959,1200.9,1200.6,4.00959]
[1609995900579,3.9964707,1200.9,1200.6,4.00959]
[1609995900880,49.7132,1201.3,1200.6,4.00959]
[1609995901283,49.7132,1201.3,1201.2,4.00959]
[1609995905990,68.5235,1202.0,1201.2,4.00959]
[1609995907190,68.5235,1202.0,1201.9,4.00959]
[1609995907491,68.5235,1202.0,1198.3,37.377]
[1609995909391,68.5235,1202.0,1201.9,4.00959]
[1609995915399,4.00959,1202.3,1201.9,4.00959]
[1609995917401,4.00959,1202.5,1202.2,4.00959]
[1609995919302,4.00959,1202.5,1198.3,37.377]
[1609995919503,4.00959,1202.3,1202.0,4.00959]
[1609995923518,4.00959,1202.3,1202.2,4.00959]
[1609995926120,3.674,1203.6,1202.2,4.00959]
[1609995927424,4.00959,1202.7,1202.5,4.00959]
[1609995929328,4.00959,1202.7,1198.3,37.377]
[1609995929527,4.00959,1202.7,1202.2,4.00959]
[1609995931429,4.00959,1202.5,1202.2,4.00959]
[1609995932030,4.00959,1202.5,1198.3,37.377]
[1609995933536,4.00959,1202.5,1202.4,4.00959]
[1609995933735,3.674,1203.6,1202.4,4.00959]
[1609995934435,8.8856,1204.1,1202.4,4.00959]
[1609995934636,12.5596,1204.1,1202.4,4.00959]
[1609995935439,4.00959,1203.3,1202.9,4.00959]
[1609995935738,4.00959,1203.3,1198.3,37.377]
[1609995937541,4.00959,1202.8,1202.7,4.00959]
[1609995938039,9.5157,1204.1,1202.7,4.00959]
[1609995939440,4.00959,1203.0,1202.9,4.00959]
[1609995940240,4.00959,1203.0,1198.3,37.377]
[1609995941541,4.00959,1202.8,1202.4,4.00959]
[1609995942241,9.5157,1204.1,1202.4,4.00959]
[1609995943442,4.00959,1202.8,1202.4,4.00959]
[1609995944043,64.4395,1203.7,1202.4,4.00959]
[1609995945443,4.00959,1203.0,1202.8,4.00959]
[1609995945946,4.00959,1203.0,1198.3,37.377]
[1609995947543,64.4395,1203.7,1202.5,4.00959]
[1609995947843,64.4395,1203.7,1198.3,37.377]
[1609995949444,4.00959,1202.3,1202.2,4.00959]
[1609995949644,4.00959,1202.3,1198.3,37.377]
[1609995951546,2.7749,1203.2,1201.9,4.00959]
[1609995952647,32.7749,1203.2,1201.9,4.00959]
[1609995953545,4.00959,1202.0,1201.9,4.00959]
[1609995953745,4.00959,1202.0,1198.3,37.377]
[1609995954546,5.67529,1202.0,1198.3,37.377]
[1609995955551,4.00959,1201.7,1201.6,4.00959]
[1609995958255,5.69329,1201.7,1201.6,4.00959]
[1609995959458,4.00959,1201.7,1201.6,4.00959]
[1609995961157,4.00959,1201.7,1198.3,37.377]
[1609995961657,4.00959,1201.3,1201.2,4.00959]
[1609995963560,4.00959,1201.3,1198.3,37.377]
[1609995964259,65.0708,1201.8,1198.3,37.377]
[1609995965561,65.0708,1201.8,1201.4,4.00959]
[1609995967567,65.0708,1201.8,1201.7,4.00959]
[1609995971872,46.4855,1203.3,1201.7,4.00959]
[1609995973581,4.00959,1203.0,1202.8,4.00959]
[1609995974277,4.00959,1203.0,1198.3,37.377]
[1609995975679,1.6634,1203.0,1202.6,4.00959]
[1609995975978,46.4855,1203.3,1198.3,37.377]
[1609995976181,76.4855,1203.3,1198.3,37.377]
[1609995977081,46.4855,1203.3,1198.3,37.377]
[1609995977881,4.00959,1202.5,1202.0,4.00959]
[1609995978181,4.00959,1202.5,1198.3,37.377]
[1609995979591,4.00959,1201.8,1201.6,4.00959]
[1609995981095,5.68529,1201.8,1201.6,4.00959]
[1609995981994,4.00959,1201.8,1201.6,4.00959]
[1609995984700,61.5297,1202.0,1201.6,4.00959]
[1609995985706,61.5297,1202.0,1198.3,37.377]
[1609995985707,61.5297,1202.0,1201.9,4.00959]
[1609995986403,63.2143,1202.0,1201.9,4.00959]
[1609995986900,61.5297,1202.0,1201.9,4.00959]
[1609995988903,30.0,1205.1,1201.9,4.00959]
[1609995989103,1.6658,1203.8,1201.9,4.00959]
[1609995989702,4.00959,1203.5,1203.1,4.00959]
[1609995990804,5.66969,1203.5,1198.3,37.377]
[1609995991004,4.00959,1203.5,1198.3,37.377]
[1609995991806,36.09,1204.1,1198.3,37.377]
[1609995993914,4.00959,1202.4,1202.3,4.00959]
[1609995994414,32.1568,1203.4,1198.3,37.377]
[1609995994615,35.8308,1203.4,1198.3,37.377]
[1609995995915,4.00959,1201.8,1201.6,4.00959]
[1609995996418,2.5862,1202.9,1201.6,4.00959]
[1609995997419,30.0,1202.8,1201.6,4.00959]
[1609995997718,4.00959,1202.0,1201.6,4.00959]
[1609995999821,4.00959,1201.7,1201.6,4.00959]
[1609996000121,5.67799,1201.7,1198.3,37.377]
[1609996000521,4.00959,1201.7,1198.3,37.377]
[1609996001823,4.00959,1201.4,1201.0,4.00959]
[1609996002023,2.9312,1202.5,1201.0,4.00959]
[1609996002623,2.5862,1202.9,1201.0,4.00959]
[1609996002823,41.6611,1203.3,1201.0,4.00959]
[1609996003827,4.00959,1201.6,1201.2,4.00959]
[1609996004224,2.4396,1202.6,1198.3,37.377]
[1609996005826,4.00959,1202.3,1201.5,4.00959]
[1609996006325,4.00959,1202.3,1198.3,37.377]
[1609996007826,4.00959,1201.6,1201.3,4.00959]
[1609996008227,4.00959,1201.6,1198.3,37.377]
[1609996009128,1.6857,1202.0,1198.3,37.377]
[1609996009328,2.7437,1202.9,1198.3,37.377]
[1609996009828,4.00959,1201.9,1201.3,4.00959]
[1609996010229,5.66519,1201.9,1201.3,4.00959]
[1609996010430,4.00959,1201.9,1201.3,4.00959]
[1609996011531,5.67419,1201.9,1201.3,4.00959]
[1609996011731,4.00959,1201.9,1201.3,4.00959]
[1609996015533,32.7437,1202.9,1201.3,4.00959]
[1609996015835,4.00959,1202.0,1201.6,4.00959]
[1609996016334,32.7437,1202.9,1201.6,4.00959]
[1609996016635,2.7437,1202.9,1201.6,4.00959]
[1609996016836,30.0,1203.2,1201.6,4.00959]
[1609996017037,30.0,1202.9,1201.6,4.00959]
[1609996017836,4.00959,1202.1,1201.8,4.00959]
[1609996018137,4.00959,1202.1,1198.3,37.377]
[1609996019938,4.00959,1202.1,1201.6,4.00959]
[1609996020341,58.4908,1202.3,1201.6,4.00959]
[1609996021845,4.00959,1201.9,1201.6,4.00959]
[1609996023947,4.00959,1201.7,1201.6,4.00959]
[1609996024246,4.00959,1201.7,1198.3,37.377]
[1609996026048,30.0,1202.2,1201.0,4.00959]
[1609996026856,58.4908,1202.3,1198.3,37.377]
[1609996027649,88.4908,1202.3,1198.3,37.377]
[1609996027954,4.00959,1201.2,1201.0,4.00959]
[1609996028250,30.0,1202.3,1201.0,4.00959]
[1609996028456,30.0,1202.3,1198.3,37.377]
[1609996028652,30.0,1202.2,1198.3,37.377]
[1609996029852,30.0,1202.6,1198.3,37.377]
[1609996030052,30.0,1202.2,1201.2,4.00959]
[1609996031054,30.0,1202.1,1201.2,4.00959]
[1609996031653,30.0,1202.1,1198.3,37.377]
[1609996032154,4.00959,1201.3,1200.8,4.00959]
[1609996037959,4.00959,1201.3,1201.0,4.00959]
[1609996038160,30.0,1202.6,1201.0,4.00959]
[1609996040162,4.00959,1201.3,1198.3,30.0]
[1609996041963,4.00959,1201.1,1201.0,4.00959]
[1609996042164,30.0,1202.3,1201.0,4.00959]
[1609996042366,30.0,1202.3,1198.3,30.0]
[1609996044068,30.0,1202.3,1200.9,4.00959]
[1609996046068,4.00959,1201.0,1200.9,4.00959]
[1609996047770,4.00959,1201.0,1198.3,30.0]
[1609996048670,4.00959,1201.0,1198.2,11.3129]
[1609996050072,4.00959,1200.6,1200.4,4.00959]
[1609996050472,2.3531,1202.1,1200.4,4.00959]
[1609996050874,32.3531,1202.1,1200.4,4.00959]
[1609996052174,4.00959,1200.5,1200.2,4.00959]
[1609996052473,32.3531,1202.1,1200.2,4.00959]
[1609996054082,4.00959,1200.3,1200.2,4.00959]
[1609996056184,32.3531,1202.1,1200.2,4.00959]
[1609996056384,97.5007,1202.1,1200.2,4.00959]
[1609996058385,4.00959,1200.3,1200.2,4.00959]
[1609996060088,32.784,1201.8,1200.2,4.00959]
[1609996060288,4.00959,1200.5,1200.2,4.00959]
[1609996060489,4.00959,1200.5,1199.9,68.9165]
[1609996062190,4.00959,1200.0,1199.9,68.9165]
[1609996064995,2.3379,1200.9,1199.9,68.9165]
[1609996065696,60.926,1200.3,1199.4,4.00959]
[1609996065895,2.3379,1200.9,1199.4,4.00959]
[1609996066397,4.00959,1200.0,1199.7,4.00959]
[1609996066697,2.3379,1200.9,1199.7,4.00959]
[1609996068099,2.0975,1201.2,1199.7,4.00959]
[1609996068398,30.0,1202.6,1200.9,4.00959]
[1609996069300,30.0,1202.9,1200.9,4.00959]
[1609996070204,33.674,1202.7,1200.9,4.00959]
[1609996070503,4.00959,1201.2,1200.9,4.00959]
[1609996072304,33.3753,1202.3,1201.1,4.00959]
[1609996072504,162.8224,1202.1,1197.8,170.8099]
[1609996074005,162.8224,1202.1,1197.8,140.8099]
[1609996074206,6.1603,1202.0,1197.8,140.8099]
[1609996074406,4.00959,1200.4,1200.1,4.00959]
[1609996074606,4.00959,1200.4,1197.8,140.8099]
[1609996075208,4.00959,1200.4,1197.7,5.8334]
[1609996076407,2.3747,1201.3,1199.8,4.00959]
[1609996078310,4.00959,1200.4,1200.2,4.00959]
[1609996078509,4.00959,1200.4,1197.7,5.8334]
[1609996079111,4.00959,1200.4,1198.4,63.1122]
[1609996080314,4.00959,1200.4,1200.2,4.00959]
[1609996080716,4.00959,1200.4,1198.4,63.1122]
[1609996082016,2.3747,1201.3,1198.4,63.1122]
[1609996082216,51.8092,1201.5,1198.4,63.1122]
[1609996082517,4.00959,1200.9,1200.4,4.00959]
[1609996083420,3.0556,1201.3,1200.4,4.00959]
[1609996084420,68.2073,1201.5,1201.2,4.00959]
[1609996084620,3.3753,1202.3,1201.2,4.00959]
[1609996084920,5.896,1203.0,1201.2,4.00959]
[1609996085519,3.674,1203.1,1201.2,4.00959]
[1609996086321,3.674,1203.1,1201.6,4.00959]
[1609996087823,33.674,1203.1,1201.6,4.00959]
[1609996088525,4.00959,1202.1,1201.9,4.00959]
[1609996090626,4.00959,1202.1,1201.7,50.9359]
[1609996092327,4.00959,1202.1,1202.0,4.00959]
[1609996093832,3.2529,1202.9,1202.0,4.00959]
[1609996094031,3.674,1203.1,1202.0,4.00959]
[1609996094431,3.674,1203.1,1202.6,4.00959]
[1609996095431,30.0,1203.8,1202.6,4.00959]
[1609996096134,30.0,1203.7,1202.6,4.00959]
[1609996096335,4.00959,1202.7,1202.1,4.00959]
[1609996097439,4.00959,1202.7,1199.8,5.718]
[1609996098340,4.00959,1201.8,1201.5,4.00959]
[1609996101345,4.00959,1201.8,1199.8,5.718]
[1609996102544,4.00959,1201.3,1201.2,4.00959]
[1609996102744,32.6727,1202.5,1201.2,4.00959]
[1609996103246,2.6727,1202.5,1201.2,4.00959]
[1609996104449,4.00959,1201.6,1201.4,4.00959]
[1609996104852,2.6727,1202.5,1201.4,4.00959]
[1609996105652,4.3457,1202.5,1201.4,4.00959]
[1609996105851,2.6727,1202.5,1201.4,4.00959]
[1609996106355,4.00959,1201.7,1201.4,4.00959]
[1609996107855,1.6506,1201.7,1201.4,4.00959]
[1609996108457,5.66019,1201.7,1201.4,4.00959]
[1609996108657,4.00959,1201.7,1201.4,4.00959]
[1609996111664,2.6727,1202.5,1201.4,4.00959]
[1609996111866,30.0,1202.7,1201.4,4.00959]
[1609996112665,4.00959,1201.9,1201.7,4.00959]
[1609996116066,6.5432,1202.8,1201.7,4.00959]
[1609996116367,4.00959,1202.3,1202.0,4.00959]
[1609996117268,4.00959,1202.3,1201.2,50.0869]
[1609996118569,36.5432,1202.8,1201.9,4.00959]
[1609996118972,36.5432,1202.8,1201.2,50.0869]
[1609996120572,4.00959,1201.6,1201.4,4.00959]
[1609996121872,6.5432,1202.8,1201.4,4.00959]
[1609996122073,63.2663,1202.7,1201.4,4.00959]
[1609996122471,4.00959,1201.8,1201.7,4.00959]
[1609996129577,4.00959,1201.8,1201.1,52.0471]
[1609996130580,4.00959,1201.4,1201.3,4.00959]
[1609996131181,3.3282,1202.4,1201.3,4.00959]
[1609996131480,30.0,1202.3,1201.3,4.00959]
[1609996132482,51.4988,1202.4,1201.3,4.00959]
[1609996132682,4.00959,1201.7,1201.6,4.00959]
[1609996136586,4.00959,1201.9,1201.6,4.00959]
[1609996138594,4.00959,1201.9,1201.8,4.00959]
[1609996139296,4.00959,1201.9,1201.5,49.3175]
[1609996140595,4.00959,1201.9,1201.5,53.32709]
[1609996140795,4.00959,1201.9,1201.5,4.00959]
[1609996141695,4.00959,1201.9,1201.0,60.8926]
[1609996142695,4.00959,1201.5,1201.2,4.00959]
[1609996142899,4.00959,1201.5,1201.0,60.8926]
[1609996144597,4.00959,1201.5,1201.3,4.00959]
[1609996146300,4.00959,1201.5,1201.0,60.8926]
[1609996146601,4.00959,1201.3,1201.1,4.00959]
[1609996148604,4.00959,1201.3,1201.0,60.8926]
[1609996150205,4.00959,1201.3,1195.5,30.0]
[1609996150506,4.00959,1201.3,1195.6,5.6293]
[1609996150706,4.00959,1201.3,1195.7,30.0]
[1609996150906,30.0,1202.4,1200.6,4.00959]
[1609996152807,4.00959,1201.0,1200.6,4.00959]
[1609996154707,4.00959,1201.0,1195.7,33.674]
[1609996154908,4.00959,1200.5,1200.3,4.00959]
[1609996158712,2.9372,1201.5,1200.3,4.00959]
[1609996158912,4.00959,1200.7,1200.6,4.00959]
[1609996164424,4.00959,1200.7,1200.1,54.5693]
[1609996164824,82.7766,1201.5,1200.2,4.00959]
[1609996167027,82.7766,1201.5,1200.4,4.00959]
[1609996167329,82.7766,1201.5,1200.1,54.5693]
[1609996167730,85.9657,1201.5,1200.1,54.5693]
[1609996168532,87.6067,1201.5,1200.1,54.5693]
[1609996168732,85.9657,1201.5,1200.1,54.5693]
[1609996168932,85.9657,1201.5,1198.7,6.0389]
[1609996168933,4.00959,1200.2,1198.7,6.0389]
[1609996170934,4.00959,1200.2,1200.0,4.00959]
[1609996172034,3.1613,1201.1,1200.0,4.00959]
[1609996172837,4.00959,1200.8,1200.6,4.00959]
[1609996174941,4.00959,1200.8,1200.1,4.00959]
[1609996176844,4.00959,1200.3,1200.1,4.00959]
[1609996177044,4.00959,1200.3,1198.7,6.0389]
[1609996178347,4.00959,1200.3,1199.8,67.3699]
[1609996178946,4.00959,1199.9,1199.8,71.37949]
[1609996179147,3.2352,1201.2,1199.8,71.37949]
[1609996180850,47.3759,1201.3,1199.8,71.37949]
[1609996181051,47.3759,1201.3,1200.5,4.00959]
[1609996181550,49.0461,1201.3,1200.5,4.00959]
[1609996182653,49.0461,1201.3,1199.8,67.3699]
[1609996182654,47.3759,1201.3,1199.8,67.3699]
[1609996182953,4.00959,1200.4,1200.2,4.00959]
[1609996184653,49.0315,1201.3,1200.2,4.00959]
[1609996184953,4.00959,1200.7,1200.5,4.00959]
[1609996185754,4.00959,1200.7,1199.8,67.3699]
[1609996186155,5.67289,1200.7,1199.8,67.3699]
[1609996186356,4.00959,1200.7,1199.8,67.3699]
[1609996186956,4.00959,1199.9,1199.8,67.3699]
[1609996187857,4.00959,1199.9,1199.4,4.00959]
[1609996189060,4.00959,1199.9,1199.6,4.00959]
[1609996190961,4.00959,1199.7,1199.6,4.00959]
[1609996192163,4.00959,1199.7,1196.2,30.0]
[1609996193065,4.00959,1199.3,1199.1,4.00959]
[1609996193867,2.666,1201.2,1199.1,4.00959]
[1609996194166,3.1891,1201.5,1199.1,4.00959]
[1609996194665,30.0,1201.5,1196.3,30.0]
[1609996194964,4.00959,1198.6,1198.5,4.00959]
[1609996199873,63.5528,1199.9,1198.5,4.00959]
[1609996200974,63.5528,1199.9,1198.8,4.00959]
[1609996201975,63.5528,1199.9,1198.4,56.0307]
[1609996202975,4.00959,1198.9,1198.6,4.00959]
[1609996204379,63.5528,1199.9,1198.6,4.00959]
[1609996205082,63.5528,1199.9,1199.4,4.00959]
[1609996206584,63.3277,1201.6,1199.8,47.9516]
[1609996207182,63.3277,1201.6,1199.9,4.00959]
[1609996209084,4.00959,1200.0,1199.9,4.00959]
[1609996210286,4.00959,1200.0,1199.8,47.9516]
[1609996215092,30.0,1199.9,1199.8,47.9516]
[1609996215994,30.0,1199.9,1198.9,53.4409]
[1609996216193,90.38229,1200.0,1198.9,53.4409]
[1609996217094,4.00959,1199.0,1198.9,53.4409]
[1609996217494,56.3727,1200.0,1198.9,53.4409]
[1609996219096,4.00959,1199.5,1199.4,4.00959]
[1609996219497,56.3727,1200.0,1199.4,4.00959]
[1609996221200,4.00959,1199.5,1199.4,4.00959]
[1609996221800,56.3727,1200.0,1199.4,4.00959]
[1609996222600,56.3727,1200.0,1198.9,53.4409]
[1609996223200,4.00959,1199.4,1199.1,4.00959]
[1609996225202,4.00959,1199.4,1199.3,4.00959]
[1609996228711,3.674,1200.6,1199.3,4.00959]
[1609996228910,50.6771,1200.6,1199.3,4.00959]
[1609996229212,4.00959,1199.4,1199.3,4.00959]
[1609996229412,50.6771,1200.6,1199.3,4.00959]
[1609996231212,4.00959,1200.1,1199.8,4.00959]
[1609996231514,4.00959,1200.1,1199.2,50.6986]
[1609996233214,4.00959,1200.1,1199.6,4.00959]
[1609996235418,4.00959,1200.1,1198.0,5.7452]
[1609996236921,5.66709,1200.1,1198.0,5.7452]
[1609996237120,4.00959,1200.1,1198.0,5.7452]
[1609996237420,4.00959,1199.8,1198.0,5.7452]
[1609996239219,4.00959,1199.6,1199.5,4.00959]
[1609996240923,3.674,1200.6,1199.5,4.00959]
[1609996241223,4.00959,1199.9,1199.5,4.00959]
[1609996243124,5.65899,1199.9,1199.5,4.00959]
[1609996243325,1.6494,1199.9,1199.7,4.00959]
[1609996243623,3.4007,1201.5,1199.7,4.00959]
[1609996244625,1.658,1202.0,1199.7,4.00959]
[1609996245126,1.6768,1202.7,1199.7,4.00959]
[1609996245427,4.00959,1201.1,1200.8,4.00959]
[1609996246126,4.00959,1201.1,1198.3,30.0]
[1609996247329,4.00959,1200.9,1198.3,30.0]